[Event "Early-Titled-Tuesday-Blitz-February-13-2024"]
[Site "Chess.com"]
[Date "2024.02.13"]
[Round "6"]
[White "egnfanclub"]
[Black "Statham_01"]
[Result "0-1"]
[WhiteElo "2365"]
[BlackElo "2585"]
[TimeControl "180+1"]
[EndTime "9:10:31 PST"]
[Termination "Statham_01 won on time"]

1. e4 {[%clk 0:02:12.7]} 1... e5 {[%clk 0:02:55.8]} 2. Nf3 {[%clk 0:02:12]} 2...
Nf6 {[%clk 0:02:54.9]} 3. Bc4 {[%clk 0:02:07.3]} 3... Nxe4 {[%clk 0:02:54.8]} 4.
Nc3 {[%clk 0:02:07.7]} 4... Nf6 {[%clk 0:02:52.2]} 5. Nxe5 {[%clk 0:02:04.3]}
5... d5 {[%clk 0:02:52.3]} 6. Be2 {[%clk 0:01:50.4]} 6... d4 {[%clk 0:02:50.7]}
7. Nb1 {[%clk 0:01:49.2]} 7... Qd5 {[%clk 0:02:40.8]} 8. Nf3 {[%clk 0:01:48.7]}
8... Bd6 {[%clk 0:02:40.2]} 9. d3 {[%clk 0:01:44.7]} 9... O-O {[%clk 0:02:39]}
10. O-O {[%clk 0:01:44.1]} 10... Nc6 {[%clk 0:02:37.3]} 11. Bg5 {[%clk
0:01:33.4]} 11... Ng4 {[%clk 0:02:22.4]} 12. Bh4 {[%clk 0:01:33.5]} 12... f5
{[%clk 0:02:15.4]} 13. h3 {[%clk 0:01:23.7]} 13... Nge5 {[%clk 0:02:10.2]} 14.
c3 {[%clk 0:01:17.9]} 14... Ng6 {[%clk 0:01:49.2]} 15. Qb3 {[%clk 0:01:06.1]}
15... Be6 {[%clk 0:01:38]} 16. Qxd5 {[%clk 0:01:05.4]} 16... Bxd5 {[%clk
0:01:38.9]} 17. Nbd2 {[%clk 0:00:41.2]} 17... Rae8 {[%clk 0:01:34.4]} 18. Rfe1
{[%clk 0:00:41.1]} 18... Nce5 {[%clk 0:01:24.4]} 19. Bg3 {[%clk 0:00:18]} 19...
f4 {[%clk 0:01:06.7]} 20. Bh2 {[%clk 0:00:18]} 20... Nxf3+ {[%clk 0:01:03]} 21.
Nxf3 {[%clk 0:00:17.5]} 21... dxc3 {[%clk 0:00:40.7]} 22. bxc3 {[%clk
0:00:17.1]} 22... c5 {[%clk 0:00:33.4]} 23. d4 {[%clk 0:00:16.4]} 23... cxd4
{[%clk 0:00:31.5]} 24. Nxd4 {[%clk 0:00:15.8]} 24... Rc8 {[%clk 0:00:26.8]} 25.
Rab1 {[%clk 0:00:12.6]} 25... b6 {[%clk 0:00:23.5]} 26. Bf3 {[%clk 0:00:12.8]}
26... Bxf3 {[%clk 0:00:20]} 27. Nxf3 {[%clk 0:00:13.7]} 27... Rxc3 {[%clk
0:00:20.2]} 28. Nd4 {[%clk 0:00:13.6]} 28... Bc5 {[%clk 0:00:17.5]} 29. Ne6
{[%clk 0:00:11.8]} 29... Re8 {[%clk 0:00:16]} 30. Nxc5 {[%clk 0:00:11]} 30...
Rxe1+ {[%clk 0:00:15.7]} 31. Rxe1 {[%clk 0:00:11.9]} 31... Rxc5 {[%clk
0:00:12.7]} 32. g4 {[%clk 0:00:10.9]} 32... Kf7 {[%clk 0:00:12.2]} 33. Kg2
{[%clk 0:00:11.2]} 33... Nh4+ {[%clk 0:00:11]} 34. Kf1 {[%clk 0:00:10.6]} 34...
g5 {[%clk 0:00:11.9]} 35. Bg1 {[%clk 0:00:10.4]} 35... Nf3 {[%clk 0:00:08.1]}
36. Rd1 {[%clk 0:00:09.4]} 36... Ke6 {[%clk 0:00:07.5]} 37. Ke2 {[%clk
0:00:09.8]} 37... Ne5 {[%clk 0:00:05.1]} 38. f3 {[%clk 0:00:08.4]} 38... Rc2+
{[%clk 0:00:05.4]} 39. Rd2 {[%clk 0:00:08.7]} 39... Rxd2+ {[%clk 0:00:05.6]} 40.
Kxd2 {[%clk 0:00:05.6]} 40... Nxf3+ {[%clk 0:00:06.5]} 0-1

[Event "Early-Titled-Tuesday-Blitz-February-13-2024"]
[Site "Chess.com"]
[Date "2024.02.13"]
[Round "6"]
[White "Attacker_2006"]
[Black "rachidhuilda"]
[Result "1-0"]
[WhiteElo "2490"]
[BlackElo "2310"]
[TimeControl "180+1"]
[EndTime "9:10:32 PST"]
[Termination "Attacker_2006 won by checkmate"]

1. e4 {[%clk 0:02:47.1]} 1... c6 {[%clk 0:02:59.2]} 2. d4 {[%clk 0:02:45.8]}
2... d5 {[%clk 0:02:59.3]} 3. exd5 {[%clk 0:02:45.4]} 3... cxd5 {[%clk
0:02:59.1]} 4. Nf3 {[%clk 0:02:45.6]} 4... Nc6 {[%clk 0:02:59.2]} 5. c4 {[%clk
0:02:45.3]} 5... Nf6 {[%clk 0:02:56.3]} 6. Nc3 {[%clk 0:02:42.7]} 6... e6 {[%clk
0:02:55.8]} 7. cxd5 {[%clk 0:02:42.2]} 7... exd5 {[%clk 0:02:53.8]} 8. Bb5
{[%clk 0:02:38.9]} 8... Be7 {[%clk 0:02:48.4]} 9. Ne5 {[%clk 0:02:33.2]} 9...
Qb6 {[%clk 0:02:28.1]} 10. Qa4 {[%clk 0:02:21.8]} 10... O-O {[%clk 0:02:02.2]}
11. Bxc6 {[%clk 0:02:08.2]} 11... bxc6 {[%clk 0:02:02.4]} 12. Qxc6 {[%clk
0:02:07.1]} 12... Qxd4 {[%clk 0:01:55]} 13. Nf3 {[%clk 0:01:59.4]} 13... Qg4
{[%clk 0:01:48.9]} 14. O-O {[%clk 0:01:36.5]} 14... Be6 {[%clk 0:01:40.5]} 15.
Re1 {[%clk 0:01:30.4]} 15... Rfc8 {[%clk 0:01:35.7]} 16. Qb5 {[%clk 0:01:20.1]}
16... Rc5 {[%clk 0:01:22.1]} 17. Qb7 {[%clk 0:01:10.6]} 17... Re8 {[%clk
0:01:22]} 18. Be3 {[%clk 0:01:07.3]} 18... Rcc8 {[%clk 0:01:12.8]} 19. Qxa7
{[%clk 0:01:02.1]} 19... Ne4 {[%clk 0:00:54.6]} 20. Nxe4 {[%clk 0:00:49.9]}
20... dxe4 {[%clk 0:00:54.3]} 21. Nd4 {[%clk 0:00:46.9]} 21... Bc4 {[%clk
0:00:51.4]} 22. Rac1 {[%clk 0:00:33.4]} 22... Bf8 {[%clk 0:00:48.4]} 23. b3
{[%clk 0:00:29.3]} 23... Bd3 {[%clk 0:00:48.2]} 24. Rc7 {[%clk 0:00:22.7]} 24...
Rxc7 {[%clk 0:00:46.8]} 25. Qxc7 {[%clk 0:00:22.5]} 25... h5 {[%clk 0:00:39.9]}
26. a4 {[%clk 0:00:22.2]} 26... h4 {[%clk 0:00:39.1]} 27. h3 {[%clk 0:00:20.6]}
27... Qg6 {[%clk 0:00:38.7]} 28. a5 {[%clk 0:00:20.1]} 28... Bd6 {[%clk
0:00:35.1]} 29. Qc6 {[%clk 0:00:17.9]} 29... Rd8 {[%clk 0:00:28.9]} 30. Rc1
{[%clk 0:00:17.6]} 30... Qf6 {[%clk 0:00:25.9]} 31. Nb5 {[%clk 0:00:14.2]} 31...
Qe5 {[%clk 0:00:25.3]} 32. Nxd6 {[%clk 0:00:11.9]} 32... Rxd6 {[%clk 0:00:26.2]}
33. Qc8+ {[%clk 0:00:11.8]} 33... Kh7 {[%clk 0:00:26.8]} 34. Qg4 {[%clk
0:00:09.1]} 34... g6 {[%clk 0:00:15.4]} 35. Qxh4+ {[%clk 0:00:08.7]} 35... Kg7
{[%clk 0:00:16.2]} 36. Rc5 {[%clk 0:00:07.9]} 36... Qa1+ {[%clk 0:00:15.3]} 37.
Kh2 {[%clk 0:00:08]} 37... Re6 {[%clk 0:00:13.8]} 38. Bh6+ {[%clk 0:00:03.6]}
38... Kh7 {[%clk 0:00:11.7]} 39. Rc8 {[%clk 0:00:03.7]} 39... g5 {[%clk
0:00:10.9]} 40. Bxg5+ {[%clk 0:00:03.8]} 40... Kg6 {[%clk 0:00:10.3]} 41. Qh8
{[%clk 0:00:04.3]} 41... Kf5 {[%clk 0:00:11.2]} 42. Qh7+ {[%clk 0:00:03.6]}
42... Ke5 {[%clk 0:00:11.2]} 43. Qh8+ {[%clk 0:00:03.6]} 43... f6 {[%clk
0:00:10.1]} 44. Bxf6+ {[%clk 0:00:03.3]} 44... Rxf6 {[%clk 0:00:10.4]} 45. Re8+
{[%clk 0:00:03.8]} 45... Kf5 {[%clk 0:00:10.5]} 46. Qh5+ {[%clk 0:00:03.6]}
46... Kf4 {[%clk 0:00:10.1]} 47. g3# {[%clk 0:00:03.4]} 1-0

[Event "Early-Titled-Tuesday-Blitz-February-13-2024"]
[Site "Chess.com"]
[Date "2024.02.13"]
[Round "6"]
[White "WiktoriaPOL"]
[Black "Fernando_Offermann"]
[Result "1/2-1/2"]
[WhiteElo "2286"]
[BlackElo "2498"]
[TimeControl "180+1"]
[EndTime "9:10:33 PST"]
[Termination "Game drawn by repetition"]

1. c4 {[%clk 0:03:00.9]} 1... g6 {[%clk 0:02:59.7]} 2. Nc3 {[%clk 0:03:00.3]}
2... Bg7 {[%clk 0:03:00.3]} 3. g3 {[%clk 0:02:59.3]} 3... Nf6 {[%clk 0:02:58.9]}
4. Bg2 {[%clk 0:02:59.2]} 4... O-O {[%clk 0:02:59.6]} 5. e4 {[%clk 0:02:59.5]}
5... c5 {[%clk 0:02:58.7]} 6. Nge2 {[%clk 0:02:59.9]} 6... Nc6 {[%clk
0:02:59.1]} 7. O-O {[%clk 0:02:59.7]} 7... Ne8 {[%clk 0:02:59.7]} 8. d3 {[%clk
0:02:59.8]} 8... Nc7 {[%clk 0:03:00.4]} 9. Be3 {[%clk 0:02:57.9]} 9... Ne6
{[%clk 0:03:01]} 10. f4 {[%clk 0:02:55]} 10... Ned4 {[%clk 0:03:01.3]} 11. Rb1
{[%clk 0:02:49.7]} 11... d6 {[%clk 0:03:01.5]} 12. a3 {[%clk 0:02:44.5]} 12...
Rb8 {[%clk 0:02:59.6]} 13. b4 {[%clk 0:02:43.6]} 13... b6 {[%clk 0:03:00]} 14.
b5 {[%clk 0:02:43.4]} 14... Nxe2+ {[%clk 0:02:59.9]} 15. Nxe2 {[%clk 0:02:44.3]}
15... Nd4 {[%clk 0:02:56.1]} 16. Nxd4 {[%clk 0:02:41.7]} 16... cxd4 {[%clk
0:02:56.5]} 17. Bf2 {[%clk 0:02:41.9]} 17... f5 {[%clk 0:02:51.3]} 18. Qe2
{[%clk 0:02:26.3]} 18... e5 {[%clk 0:02:51.2]} 19. a4 {[%clk 0:02:16.2]} 19...
Be6 {[%clk 0:02:48.7]} 20. exf5 {[%clk 0:02:12.8]} 20... Bxf5 {[%clk 0:02:48.6]}
21. Bd5+ {[%clk 0:02:12]} 21... Kh8 {[%clk 0:02:48.3]} 22. Be1 {[%clk
0:02:04.7]} 22... Qd7 {[%clk 0:02:48.4]} 23. fxe5 {[%clk 0:01:59.7]} 23... dxe5
{[%clk 0:02:48.1]} 24. Bb4 {[%clk 0:01:59.6]} 24... Rfe8 {[%clk 0:02:48]} 25.
Bc6 {[%clk 0:01:56.6]} 25... Qe6 {[%clk 0:02:44.7]} 26. Bxe8 {[%clk 0:01:55.5]}
26... Rxe8 {[%clk 0:02:45]} 27. Rbe1 {[%clk 0:01:53.5]} 27... h5 {[%clk
0:02:44.4]} 28. a5 {[%clk 0:01:46.9]} 28... Kh7 {[%clk 0:02:44.1]} 29. c5 {[%clk
0:01:41.3]} 29... bxc5 {[%clk 0:02:36.5]} 30. Bxc5 {[%clk 0:01:41]} 30... Qd5
{[%clk 0:02:35.4]} 31. Bxa7 {[%clk 0:01:35.7]} 31... Qxb5 {[%clk 0:02:35.3]} 32.
Qa2 {[%clk 0:01:12.7]} 32... Bxd3 {[%clk 0:02:32.5]} 33. Rf2 {[%clk 0:01:02.6]}
33... e4 {[%clk 0:02:29.2]} 34. Rb2 {[%clk 0:01:01.9]} 34... Qa6 {[%clk
0:02:21.9]} 35. Qf7 {[%clk 0:00:59.9]} 35... Rf8 {[%clk 0:02:22]} 36. Qe7 {[%clk
0:00:54.8]} 36... Qf6 {[%clk 0:02:14.3]} 37. Qxf6 {[%clk 0:00:50.6]} 37... Bxf6
{[%clk 0:02:14.8]} 38. Bc5 {[%clk 0:00:49.7]} 38... Rc8 {[%clk 0:02:10.8]} 39.
Rb7+ {[%clk 0:00:47.4]} 39... Kh6 {[%clk 0:02:10.1]} 40. Bd6 {[%clk 0:00:34.3]}
40... e3 {[%clk 0:02:06.3]} 41. h4 {[%clk 0:00:29.8]} 41... Bf5 {[%clk
0:02:04.3]} 42. Bf4+ {[%clk 0:00:23.5]} 42... g5 {[%clk 0:02:04.8]} 43. Rb6
{[%clk 0:00:20.6]} 43... gxf4 {[%clk 0:02:04.8]} 44. Rxf6+ {[%clk 0:00:20.5]}
44... Bg6 {[%clk 0:02:05.2]} 45. gxf4 {[%clk 0:00:15.1]} 45... Kg7 {[%clk
0:02:05.5]} 46. Rd6 {[%clk 0:00:13.9]} 46... d3 {[%clk 0:01:55.9]} 47. Rxe3
{[%clk 0:00:13.6]} 47... Rc1+ {[%clk 0:01:56.1]} 48. Kf2 {[%clk 0:00:13.4]}
48... Rc2+ {[%clk 0:01:55.7]} 49. Ke1 {[%clk 0:00:12.5]} 49... Ra2 {[%clk
0:01:54.2]} 50. Re7+ {[%clk 0:00:10.2]} 50... Kf8 {[%clk 0:01:53.9]} 51. Rc7
{[%clk 0:00:03.6]} 51... Ra1+ {[%clk 0:01:38.4]} 52. Kd2 {[%clk 0:00:03.3]}
52... Ra2+ {[%clk 0:01:38.9]} 53. Ke3 {[%clk 0:00:03.5]} 53... Re2+ {[%clk
0:01:39.1]} 54. Kf3 {[%clk 0:00:03.2]} 54... Be4+ {[%clk 0:01:34.3]} 55. Kg3
{[%clk 0:00:03.3]} 55... Bg6 {[%clk 0:01:32.3]} 56. Rxg6 {[%clk 0:00:03.2]}
56... d2 {[%clk 0:01:31.7]} 57. Rd6 {[%clk 0:00:03.8]} 57... Ke8 {[%clk
0:01:30.6]} 58. Rcd7 {[%clk 0:00:03]} 58... Re3+ {[%clk 0:01:30]} 59. Kf2 {[%clk
0:00:02.8]} 59... Rh3 {[%clk 0:01:29.6]} 60. Rxd2 {[%clk 0:00:02.9]} 60... Rxh4
{[%clk 0:01:29.9]} 61. Ke1 {[%clk 0:00:03.2]} 61... Rh1+ {[%clk 0:01:30]} 62.
Ke2 {[%clk 0:00:03.1]} 62... h4 {[%clk 0:01:29]} 63. Ra7 {[%clk 0:00:01.9]}
63... h3 {[%clk 0:01:28.9]} 64. Ke3 {[%clk 0:00:02.5]} 64... Re1+ {[%clk
0:01:27.6]} 65. Re2 {[%clk 0:00:02.9]} 65... h2 {[%clk 0:01:28]} 66. Rh7 {[%clk
0:00:02.5]} 66... h1=Q {[%clk 0:01:26.8]} 67. Rxh1 {[%clk 0:00:03.2]} 67... Rxh1
{[%clk 0:01:26.4]} 68. Kf3+ {[%clk 0:00:03.6]} 68... Kf7 {[%clk 0:01:25.6]} 69.
Ra2 {[%clk 0:00:04]} 69... Rh3+ {[%clk 0:01:24.6]} 70. Ke4 {[%clk 0:00:03.8]}
70... Ke6 {[%clk 0:01:25.2]} 71. a6 {[%clk 0:00:04.2]} 71... Rh8 {[%clk
0:01:25]} 72. a7 {[%clk 0:00:04.7]} 72... Ra8 {[%clk 0:01:25.7]} 73. f5+ {[%clk
0:00:05.1]} 73... Kf6 {[%clk 0:01:26.3]} 74. Kf4 {[%clk 0:00:05.6]} 74... Kf7
{[%clk 0:01:24.5]} 75. Ke5 {[%clk 0:00:05.5]} 75... Re8+ {[%clk 0:01:24]} 76.
Kf4 {[%clk 0:00:05.4]} 76... Ra8 {[%clk 0:01:24.5]} 77. Rh2 {[%clk 0:00:04.6]}
77... Kg8 {[%clk 0:01:22.4]} 78. Ra2 {[%clk 0:00:02.6]} 78... Kf7 {[%clk
0:01:22.3]} 1/2-1/2

[Event "Early-Titled-Tuesday-Blitz-February-13-2024"]
[Site "Chess.com"]
[Date "2024.02.13"]
[Round "6"]
[White "MiguelEduardoGB"]
[Black "Gryffindorac8"]
[Result "0-1"]
[WhiteElo "2159"]
[BlackElo "2401"]
[TimeControl "180+1"]
[EndTime "9:10:33 PST"]
[Termination "Gryffindorac8 won on time"]

1. Nf3 {[%clk 0:02:52.8]} 1... Nf6 {[%clk 0:02:59.7]} 2. b3 {[%clk 0:02:52.3]}
2... d5 {[%clk 0:02:59.8]} 3. Bb2 {[%clk 0:02:52.7]} 3... c5 {[%clk 0:03:00.1]}
4. e3 {[%clk 0:02:53.1]} 4... Nc6 {[%clk 0:03:00.3]} 5. Bb5 {[%clk 0:02:52.7]}
5... Bd7 {[%clk 0:02:49.4]} 6. O-O {[%clk 0:02:52]} 6... e6 {[%clk 0:02:46.8]}
7. d3 {[%clk 0:02:49.6]} 7... Be7 {[%clk 0:02:37.4]} 8. Qe2 {[%clk 0:02:48.9]}
8... a6 {[%clk 0:02:36.1]} 9. Bxc6 {[%clk 0:02:47.4]} 9... Bxc6 {[%clk 0:02:37]}
10. Nbd2 {[%clk 0:02:47.4]} 10... O-O {[%clk 0:02:34.8]} 11. Ne5 {[%clk
0:02:48]} 11... Qc7 {[%clk 0:02:32.8]} 12. f4 {[%clk 0:02:47.7]} 12... b5 {[%clk
0:02:16.5]} 13. Ndf3 {[%clk 0:02:38]} 13... Bb7 {[%clk 0:02:14.4]} 14. Qf2
{[%clk 0:02:26.3]} 14... Rac8 {[%clk 0:02:09]} 15. Qg3 {[%clk 0:02:05]} 15...
Ne8 {[%clk 0:01:37]} 16. c4 {[%clk 0:01:26.5]} 16... dxc4 {[%clk 0:01:23.1]} 17.
dxc4 {[%clk 0:01:25.7]} 17... f6 {[%clk 0:01:18.9]} 18. Ng4 {[%clk 0:01:19.8]}
18... Nd6 {[%clk 0:01:14.5]} 19. Qh3 {[%clk 0:01:10.9]} 19... Nf5 {[%clk
0:00:58]} 20. Rae1 {[%clk 0:00:58.3]} 20... Be4 {[%clk 0:00:55.4]} 21. Nf2
{[%clk 0:00:38.8]} 21... Qc6 {[%clk 0:00:53.7]} 22. Nxe4 {[%clk 0:00:36.6]}
22... Qxe4 {[%clk 0:00:51.8]} 23. Nh4 {[%clk 0:00:26.8]} 23... bxc4 {[%clk
0:00:42.1]} 24. Nxf5 {[%clk 0:00:25.3]} 24... exf5 {[%clk 0:00:39.9]} 25. bxc4
{[%clk 0:00:25.5]} 25... Rfd8 {[%clk 0:00:35.5]} 26. Bc3 {[%clk 0:00:22.5]}
26... Rd3 {[%clk 0:00:30.3]} 27. Ba5 {[%clk 0:00:19.4]} 27... g6 {[%clk
0:00:28.1]} 28. Rf2 {[%clk 0:00:18.2]} 28... Re8 {[%clk 0:00:25.2]} 29. Rfe2
{[%clk 0:00:17.8]} 29... Bf8 {[%clk 0:00:24]} 30. Qf3 {[%clk 0:00:16.6]} 30...
Qxc4 {[%clk 0:00:20]} 31. Qc6 {[%clk 0:00:16.8]} 31... Qe4 {[%clk 0:00:18.2]}
32. Qxf6 {[%clk 0:00:15.9]} 32... Bg7 {[%clk 0:00:14]} 33. Qb6 {[%clk
0:00:14.7]} 33... c4 {[%clk 0:00:13.8]} 34. Qxa6 {[%clk 0:00:14]} 34... c3
{[%clk 0:00:13]} 35. Qb5 {[%clk 0:00:09.2]} 35... c2 {[%clk 0:00:11.8]} 36. Rxc2
{[%clk 0:00:07.9]} 36... Rxe3 {[%clk 0:00:11.8]} 37. Rxe3 {[%clk 0:00:07.6]}
37... Qxe3+ {[%clk 0:00:11.9]} 38. Kf1 {[%clk 0:00:05.3]} 38... Qxf4+ {[%clk
0:00:10.4]} 39. Kg1 {[%clk 0:00:03.2]} 39... Bd4+ {[%clk 0:00:10.3]} 40. Kh1
{[%clk 0:00:03.1]} 40... Qe4 {[%clk 0:00:07.2]} 41. Qc4+ {[%clk 0:00:03.3]}
41... Kh8 {[%clk 0:00:05.8]} 42. h3 {[%clk 0:00:04.2]} 42... Bg7 {[%clk
0:00:04.9]} 43. Qxe4 {[%clk 0:00:01.4]} 43... fxe4 {[%clk 0:00:05.8]} 0-1

[Event "Early-Titled-Tuesday-Blitz-February-13-2024"]
[Site "Chess.com"]
[Date "2024.02.13"]
[Round "6"]
[White "Barbix1"]
[Black "C_K_G"]
[Result "0-1"]
[WhiteElo "2284"]
[BlackElo "2133"]
[TimeControl "180+1"]
[EndTime "9:10:33 PST"]
[Termination "C_K_G won on time"]

1. d4 {[%clk 0:02:56.1]} 1... d5 {[%clk 0:02:59.7]} 2. Nf3 {[%clk 0:02:54.8]}
2... e6 {[%clk 0:02:59.8]} 3. Bf4 {[%clk 0:02:46.6]} 3... Nf6 {[%clk 0:03:00]}
4. e3 {[%clk 0:02:46.4]} 4... Bd6 {[%clk 0:03:00.6]} 5. Ne5 {[%clk 0:02:46.5]}
5... c5 {[%clk 0:02:58.7]} 6. Bb5+ {[%clk 0:02:41.6]} 6... Ke7 {[%clk
0:02:48.7]} 7. c3 {[%clk 0:02:26.6]} 7... a6 {[%clk 0:02:43.6]} 8. Bd3 {[%clk
0:02:26]} 8... c4 {[%clk 0:02:40.8]} 9. Bc2 {[%clk 0:02:25.1]} 9... Nc6 {[%clk
0:02:40.2]} 10. Nd2 {[%clk 0:02:23.8]} 10... Qc7 {[%clk 0:02:39.2]} 11. Ndf3
{[%clk 0:02:09.3]} 11... b5 {[%clk 0:02:27]} 12. g4 {[%clk 0:01:37.2]} 12... Bb7
{[%clk 0:02:20.5]} 13. g5 {[%clk 0:01:33.1]} 13... Ne4 {[%clk 0:02:20.5]} 14.
Qb1 {[%clk 0:01:23.3]} 14... f6 {[%clk 0:02:08.4]} 15. gxf6+ {[%clk 0:01:15.1]}
15... gxf6 {[%clk 0:02:09.3]} 16. Nxc6+ {[%clk 0:01:02.8]} 16... Bxc6 {[%clk
0:02:10.2]} 17. Bxd6+ {[%clk 0:00:55.9]} 17... Qxd6 {[%clk 0:02:11.1]} 18. Ke2
{[%clk 0:00:48.6]} 18... Rhg8 {[%clk 0:02:06]} 19. Qf1 {[%clk 0:00:41.9]} 19...
Rg7 {[%clk 0:01:58]} 20. Qh3 {[%clk 0:00:29.4]} 20... Rag8 {[%clk 0:01:55.6]}
21. Nh4 {[%clk 0:00:28.8]} 21... Ng5 {[%clk 0:01:40.3]} 22. Qg4 {[%clk
0:00:22.1]} 22... Bd7 {[%clk 0:01:16.4]} 23. Qh5 {[%clk 0:00:19.2]} 23... Kd8
{[%clk 0:01:05.8]} 24. Rag1 {[%clk 0:00:07.8]} 24... Kc7 {[%clk 0:01:02.4]} 25.
Qh6 {[%clk 0:00:05.2]} 25... Qe7 {[%clk 0:00:59.6]} 26. f4 {[%clk 0:00:04.7]}
26... Nh3 {[%clk 0:00:52.2]} 27. Rxg7 {[%clk 0:00:03.7]} 27... Rxg7 {[%clk
0:00:52.8]} 28. Nf3 {[%clk 0:00:02.7]} 28... Rg2+ {[%clk 0:00:51.1]} 29. Kd1
{[%clk 0:00:02.9]} 29... Nf2+ {[%clk 0:00:47.9]} 30. Kc1 {[%clk 0:00:02]} 30...
Nd3+ {[%clk 0:00:42.6]} 31. Bxd3 {[%clk 0:00:02]} 31... cxd3 {[%clk 0:00:43.5]}
32. Qh3 {[%clk 0:00:02.3]} 32... Rc2+ {[%clk 0:00:37]} 33. Kb1 {[%clk 0:00:02]}
33... b4 {[%clk 0:00:37.1]} 34. Ne1 {[%clk 0:00:01.1]} 34... Rd2 {[%clk
0:00:28.8]} 35. Kc1 {[%clk 0:00:01.4]} 35... Re2 {[%clk 0:00:25]} 36. Nxd3
{[%clk 0:00:01.3]} 36... bxc3 {[%clk 0:00:25.1]} 37. Kb1 {[%clk 0:00:01.6]}
37... cxb2 {[%clk 0:00:14.7]} 38. Nxb2 {[%clk 0:00:02.5]} 38... Qb4 {[%clk
0:00:13.9]} 39. Rc1+ {[%clk 0:00:03.1]} 39... Kb7 {[%clk 0:00:13.4]} 40. Rc2
{[%clk 0:00:02.7]} 40... Re1+ {[%clk 0:00:13.1]} 41. Rc1 {[%clk 0:00:03]} 41...
Bb5 {[%clk 0:00:11.4]} 42. Qg2 {[%clk 0:00:02.8]} 42... Bd3+ {[%clk 0:00:11.1]}
0-1

[Event "Early-Titled-Tuesday-Blitz-February-13-2024"]
[Site "Chess.com"]
[Date "2024.02.13"]
[Round "6"]
[White "Nikolakis2014"]
[Black "DonkyDonkyDonkey"]
[Result "1/2-1/2"]
[WhiteElo "2714"]
[BlackElo "2932"]
[TimeControl "180+1"]
[EndTime "9:10:35 PST"]
[Termination "Game drawn by repetition"]

1. d4 {[%clk 0:02:51.6]} 1... Nf6 {[%clk 0:02:58.7]} 2. c4 {[%clk 0:02:48.6]}
2... e6 {[%clk 0:02:59]} 3. Nc3 {[%clk 0:02:47.9]} 3... Bb4 {[%clk 0:02:57.1]}
4. a3 {[%clk 0:02:47.1]} 4... Bxc3+ {[%clk 0:02:55.3]} 5. bxc3 {[%clk
0:02:47.3]} 5... d5 {[%clk 0:02:56]} 6. f3 {[%clk 0:02:45.7]} 6... O-O {[%clk
0:02:56.2]} 7. Bg5 {[%clk 0:02:44.5]} 7... h6 {[%clk 0:02:54.2]} 8. Bh4 {[%clk
0:02:44.1]} 8... Nbd7 {[%clk 0:02:47.8]} 9. e3 {[%clk 0:02:35.8]} 9... c5 {[%clk
0:02:47]} 10. cxd5 {[%clk 0:02:26.6]} 10... exd5 {[%clk 0:02:47.9]} 11. Bd3
{[%clk 0:02:25.5]} 11... Re8 {[%clk 0:02:45.8]} 12. Qd2 {[%clk 0:02:25.1]} 12...
Qe7 {[%clk 0:02:07.6]} 13. Bf2 {[%clk 0:02:19.6]} 13... Nf8 {[%clk 0:01:54.3]}
14. Ne2 {[%clk 0:02:18]} 14... Ng6 {[%clk 0:01:54.5]} 15. O-O {[%clk 0:02:17.2]}
15... b6 {[%clk 0:01:48.7]} 16. Rfe1 {[%clk 0:02:15.9]} 16... Bb7 {[%clk
0:01:48.9]} 17. Ng3 {[%clk 0:02:14.7]} 17... Qd7 {[%clk 0:01:47]} 18. a4 {[%clk
0:02:10]} 18... Rac8 {[%clk 0:01:45.4]} 19. Bf5 {[%clk 0:01:59]} 19... Qd8
{[%clk 0:01:31.6]} 20. Bxc8 {[%clk 0:01:58.3]} 20... Qxc8 {[%clk 0:01:32.5]} 21.
a5 {[%clk 0:01:57.9]} 21... h5 {[%clk 0:01:28.4]} 22. axb6 {[%clk 0:01:54.9]}
22... axb6 {[%clk 0:01:29.3]} 23. Rab1 {[%clk 0:01:44.6]} 23... h4 {[%clk
0:01:29.4]} 24. Ne2 {[%clk 0:01:43.7]} 24... h3 {[%clk 0:01:29.7]} 25. Rxb6
{[%clk 0:01:37.9]} 25... hxg2 {[%clk 0:01:30.2]} 26. Kxg2 {[%clk 0:01:35.1]}
26... Qf5 {[%clk 0:01:30.7]} 27. Bg3 {[%clk 0:01:30]} 27... Bc8 {[%clk
0:01:25.3]} 28. Rf1 {[%clk 0:01:14.9]} 28... Qg5 {[%clk 0:01:22.7]} 29. dxc5
{[%clk 0:00:58.9]} 29... Nh4+ {[%clk 0:01:17.8]} 30. Kh1 {[%clk 0:00:53.9]}
30... Bh3 {[%clk 0:01:16.8]} 31. Rf2 {[%clk 0:00:51.4]} 31... Rxe3 {[%clk
0:00:41.8]} 32. c6 {[%clk 0:00:44.6]} 32... Nf5 {[%clk 0:00:19.8]} 33. Bf4
{[%clk 0:00:27.6]} 33... Rxf3 {[%clk 0:00:20.1]} 34. Bxg5 {[%clk 0:00:20.6]}
34... Rxf2 {[%clk 0:00:20.8]} 35. Rb1 {[%clk 0:00:20.5]} 35... Ne4 {[%clk
0:00:20.9]} 36. Qxd5 {[%clk 0:00:19.2]} 36... Rxe2 {[%clk 0:00:18.9]} 37. c7
{[%clk 0:00:18.9]} 37... Kh7 {[%clk 0:00:09.3]} 38. c8=Q {[%clk 0:00:16]} 38...
Nfg3+ {[%clk 0:00:08.3]} 39. hxg3 {[%clk 0:00:15.6]} 39... Bxc8 {[%clk
0:00:09.2]} 40. g4 {[%clk 0:00:15.3]} 40... Bxg4 {[%clk 0:00:09.1]} 41. Qd4
{[%clk 0:00:14.6]} 41... Bf3+ {[%clk 0:00:09.5]} 42. Kg1 {[%clk 0:00:15]} 42...
Rg2+ {[%clk 0:00:09.8]} 43. Kf1 {[%clk 0:00:14.9]} 43... Ng3+ {[%clk 0:00:07.4]}
44. Ke1 {[%clk 0:00:15.2]} 44... Re2+ {[%clk 0:00:08]} 45. Kd1 {[%clk
0:00:15.6]} 45... Ra2+ {[%clk 0:00:06.6]} 46. Ke1 {[%clk 0:00:14.6]} 46... Re2+
{[%clk 0:00:07]} 47. Kd1 {[%clk 0:00:14.8]} 47... Ra2+ {[%clk 0:00:03.8]} 48.
Ke1 {[%clk 0:00:13.2]} 48... Re2+ {[%clk 0:00:03.6]} 1/2-1/2